{"text_format":"3","workbook":"xlsx","n_sheets":4,"sheets":["Explications A LIRE","Valorisations RH","1- Tableau financier adapté","2- Tableau financier CompteAsso"],"not_rendered":{"defined_names":1},"read":"whole","date_system":"1900"}

{"sheet":"Explications A LIRE","index":0,"n_rows":19,"n_cols":1,"rows_kept":19,"merged":[[0,0,1,10],[3,0,3,10],[4,0,4,10],[6,0,6,10],[7,0,7,10],[8,0,8,10],[9,0,9,10],[10,0,10,10],[11,0,11,10],[12,0,13,10],[15,0,15,10],[16,0,16,10],[17,0,17,10],[18,0,18,10],[20,0,20,10]]}
["Instructions importantes avant d'utiliser ce document"]
[]
[]
["Certains d'entre vous rencontrent des difficultés pour formaliser les éléments budgétaires liés à leur projet."]
["Aussi, nous avons cherché à simplifier la compréhension et la présentation de ces éléments financiers."]
[]
["L'onglet \"Tableau financier adapté\" a été établi en fonction des spécificités liées à nos activités."]
["L'onglet n°2 \"Tableau financier CompteAsso\" correspond à une forme réglementaire, classique pour tout dossier de subvention."]
["Ces deux onglets \"communiquent\" entre eux, ils sont liés ; aussi, vous ne pouvez pas modifier manuellement l'onglet 2."]
[]
["Vous avez ainsi deux possibilités pour remplir votre budget de demande de subvention et/ou votre bilan financier :"]
["* remplir le tableau financier directement dans Le Compte Asso"]
["* OU utiliser ce classeur excel en remplissant l'onglet 1 \"Bilan financier adapté\" → l'onglet 2 \"Bilan financier CompteAsso\" va alors automatiquement se remplir et vous pourrez recopier les données de l'onglet 2 dans votre demande de subvention et/ou bilan sur le Compte Asso"]
[]
[]
["La FFHandball vous propose également une aide pour mieux valoriser budgétairement les ressources humaines impliquées dans vos différentes actions :"]
["* les emplois salariés"]
["* les RH bénévoles"]
["Cette aide est disponible dans l'onglet \"Valorisation RH\" et s'intègrera automatiquement dans les 2 onglets suivants si vous souhaitez l'utiliser."]

{"sheet":"Valorisations RH","index":1,"n_rows":33,"n_cols":18,"rows_kept":33,"merged":[[9,0,10,0],[9,2,10,2],[9,3,10,3],[9,7,10,7],[9,8,10,8],[9,9,10,9],[9,12,10,12],[9,13,10,13],[9,14,10,14]]}
["Calcul du coût de l'emploi salarié sur un projet"]
["Trois informations doivent être fournies par vos soins pour que les calculs soit automatiquement effectués"]
["* le montant du salaire brut mensuel (toutes charges comprises) de votre ou vos salariés"]
["* les financements éventuellement perçus pour cet emploi"]
["* le nombre d'heures passées sur le projet pour chaque salarié"]
["Vous n'avez donc à remplir que les cellules en bleu ci-dessous"]
["Le calcul viendra ensuite automatiquent remplir les champs \"Salaires\" et \"Charges sociales\" (en charges) et \"Subventions Emploi\" (en ressources) dans l'onglet 1. Tableau financier adapté (cellules identifiées en vert)."]
[]
[{"$nulls":16},"OUI"]
["SALARIE","SALAIRE BRUT MENSUEL (TOUTES CHARGES COMPRISES)","COUT HORAIRE","NOMBRE D'HEURES PASSEES SUR LE PROJET",{"$nulls":3},"SALAIRE BRUT AFFECTE AU PROJET","SALAIRE NET AFFECTE AU PROJET","CHARGES SOCIALES","CET EMPLOI EST-IL SUBVENTIONNE ?","TYPE DE SUBVENTION","MONTANT ANNUEL SUBVENTIONNE","SUB HORAIRE","PART DU SUBVENTIONNEMENT AFFECTE AU PROJET",null,"NON"]
[null,"Ce montant est à rechercher sous la mention TOTAL VERSE du bulletin de salaire de votre salarié",{"$nulls":8},"Sélectionner OUI / NON","Sélectionner dans le menu déroulant"]
["Salarié 1",null,{"$f":"B12/151.67","v":0},{"$nulls":4},{"$f":"D12*C12","v":0},{"$f":"H12-J12","v":0},{"$f":"H12*0.22","v":0},{"$nulls":3},{"$f":"(M12/12)/151.67","v":0},{"$f":"N12*D12","v":0},null,"Subvention Emploi ANS",{"$f":"SUMIF($L$12:$L$21,Q12,$O$12:$O$21)","v":0}]
["Salarié 2",null,{"$f":"B13/151.67","v":0},{"$nulls":4},{"$f":"D13*C13","v":0},{"$f":"H13-J13","v":0},{"$f":"H13*0.22","v":0},{"$nulls":3},{"$f":"(M13/12)/151.67","v":0},{"$f":"N13*D13","v":0},null,"Subvention Emploi Educateur Socio-Sportif",{"$f":"SUMIF($L$12:$L$21,Q13,$O$12:$O$21)","v":0}]
["Salarié 3",null,{"$f":"B14/151.67","v":0},{"$nulls":4},{"$f":"D14*C14","v":0},{"$f":"H14-J14","v":0},{"$f":"H14*0.22","v":0},{"$nulls":3},0,0,null,"Subvention Emploi Apprentissage",0]
["Salarié 4",null,0,{"$nulls":4},{"$f":"D15*C15","v":0},0,0,{"$nulls":3},0,0,null,"Subvention Emploi Conseil Régional",0]
["Salarié 5",null,0,{"$nulls":4},{"$f":"D16*C16","v":0},0,0,{"$nulls":3},0,0,null,"Subvention Emploi Conseil Départemental",0]
["Salarié 6",null,0,{"$nulls":4},0,0,0,{"$nulls":3},0,0,null,"Subvention Emploi Mairie",0]
["Salarié 7",null,0,{"$nulls":4},0,0,0,{"$nulls":3},0,0]
["Salarié 8",null,0,{"$nulls":4},0,0,0,{"$nulls":3},0,0]
["Salarié 9",null,0,{"$nulls":4},0,0,0,{"$nulls":3},0,0]
["Salarié 10",null,0,{"$nulls":4},0,0,0,{"$nulls":3},0,0]
["TOTAL",{"$nulls":7},{"$f":"SUM(I12:I21)","v":0},{"$f":"SUM(J12:J21)","v":0},{"$nulls":4},{"$f":"SUM(O12:O21)","v":0}]
[]
[]
["Calcul de valorisation du bénévolat"]
["Le tableau ci-dessous vous aide à renseigner les 2 cellules concernant la valorisation du personnel bénévole dans l'onglet 1-Tableau financier adapté (en jaune)"]
["Deux informations sont à fournir :"]
["*Nombre de bénévoles contribuant au projet"]
["*Nombre d'heures passées par bénévole sur le projet (en moyenne)"]
["Vous n'avez donc à remplir que les cellules en bleu ci-dessous"]
[]
["NOMBRE DE BENEVOLES SUR LE PROJET","NOMBRE D'HEURES PASSEES PAR BÉNÉVOLE (EN MOYENNE) SUR LE PROJET","VALORISATION ESTIMEE"]
[null,null,{"$f":"A33*B33*15","v":0},null,null,{"$f":"A33*B33*#REF!","v":{"$error":"#REF!"}}]

{"sheet":"1- Tableau financier adapté","index":2,"n_rows":35,"n_cols":4,"rows_kept":35,"merged":[[0,0,0,3],[2,0,2,1],[2,2,2,3],[29,0,29,3]]}
["Bilan financier de l'action"]
[]
["DEPENSES / CHARGES",null,"RECETTES / PRODUITS "]
[null,"Prévision\nMontant en €",null,"Prévision\nMontant en €"]
["Achat matériels sportifs/pédagogiques",null,"Cotisations / Licences, dont part assurances\n(si spécifiques au projet)"]
["Achat matières premières buvette",null,"Recettes liées au projet (participations familles, inscriptions, …)"]
["Achat matériel d'entretien / réparations",null,"Sponsoring / lié au projet"]
["Achat tenues",null,"Don - mécénat / lié au projet"]
["Location salles, locaux, stade",null,"Buvette et restauration"]
["Location matériel",null,"Vente de produits dérivés"]
["Hébergement",null,"Subventions Conseil Regional\n(dédiées pour l'action)"]
["Restauration et frais de réception",null,"Subventions Conseil Départemental\n(dédiées pour l'action)"]
["Déplacements / frais kilométriques ",null,"Subventions Comcom/EPCI \n(dédiées pour l'action)"]
["Inscription formations encadrants, dirigeants, arbitres",null,"Subventions commune(s)/mairie(s) (dédiées pour l'action)"]
["Insription formations autre",null,"Subvention ANS/PSF"]
["Communication",null,"Subvention Emploi ANS (voir onglet \"VALORISATIONS RH\")",{"$f":"'Valorisations RH'!R12","v":0}]
["Impressions / Documentation",null,"Subvention Emploi Educateur Socio-Sportif (voir onglet \"VALORISATIONS RH\")",{"$f":"'Valorisations RH'!R13","v":0}]
["Cotisations / adhésions (dont part assurance des titres vendus pour le projet)",null,"Subvention Emploi Apprentissage (voir onglet \"VALORISATIONS RH\")",{"$f":"'Valorisations RH'!R14","v":0}]
["Assurances (spécifique au projet)",null,"Subvention Emploi Conseil Régional (voir onglet \"VALORISATIONS RH\")",{"$f":"'Valorisations RH'!R15","v":0}]
["Accompagnement prestataire hors sportif (freelance, informatique, graphisme, …)",null,"Subvention Emploi Conseil Départemental (voir onglet \"VALORISATIONS RH\")",{"$f":"'Valorisations RH'!R16","v":0}]
["Accompagnement prestataire sportif (intervenant extérieur, mise à disposition d'éducateur…)",null,"Subvention Emploi Mairie (voir onglet \"VALORISATIONS RH\")",{"$f":"'Valorisations RH'!R17","v":0}]
["Salaire (si salarié·e) au ratio du temps passé sur le projet (voir onglet \"VALORISATIONS RH\")",{"$f":"'Valorisations RH'!I22","v":0},"Organismes sociaux (CAF, etc.)"]
["Charges sociales (si salarié·e) (voir onglet \"VALORISATIONS RH\")",{"$f":"'Valorisations RH'!J22","v":0},"Fonds européens"]
["Impôts et taxes (spécifiques au projet)",null,"ASP (Emplois aidés)"]
["Autres dépenses ",null,"Autres établissements publics "]
["Charges indirectes (charges fixes du club réparties au prorata pour le projet)",null,"Autres recettes diverses / produits exceptionnels"]
[null,null,"Contrat Territorial Individualisé"]
[null,null,"Ressources propres (fonds de l'association dédiés à ce projet)"]
["TOTAL des charges",{"$f":"SUM(B5:B26)","v":0},"TOTAL des produits",{"$f":"SUM(D5:D28)","v":0}]
["Valorisations - contributions volontaires en nature \n(n'inscrire ci-dessous que des valorisations, qui doivent être équilibrées en dépenses et recettes)"]
["Secours et sécurité",null,"Bénévolat (voir onglet \"VALORISATIONS RH\")",{"$f":"'Valorisations RH'!C33","v":0}]
["Mise à disposition gratuite \n(biens & services)",null,"Prestations en nature"]
["Prestations",null,"Dons en nature"]
["Personnel bénévole (voir onglet \"VALORISATIONS RH\")",{"$f":"'Valorisations RH'!C33","v":0}]
["TOTAL valorisations",{"$f":"SUM(B31:B34)","v":0},"TOTAL valorisations",{"$f":"SUM(D31:D33)","v":0}]

{"sheet":"2- Tableau financier CompteAsso","index":3,"n_rows":46,"n_cols":5,"rows_kept":46,"merged":[[0,0,0,3],[4,0,4,1],[4,2,4,3],[9,4,17,4],[34,0,34,1],[34,2,34,3],[39,0,39,3]]}
["2. Tableau de synthèse"]
[]
[]
["DEPENSES / CHARGES","Prévision\nMontant en €","RECETTES / PRODUITS ","Prévision\nMontant en €"]
["CHARGES DIRECTES AFFECTEES A L'ACTION",null,"RESSOURCES DIRECTES AFFECTEES A L'ACTION"]
["60- Achats",{"$f":"SUM(B7:B8)","v":0},"70 - Vente de produits finis, de prestations de services",{"$f":"'1- Tableau financier adapté'!D9+'1- Tableau financier adapté'!D10","v":0}]
["Achat matières et fournitures",{"$f":"'1- Tableau financier adapté'!B5+'1- Tableau financier adapté'!B8","v":0},"73 - Dotations et produits de tarification"]
["Autres fournitures",{"$f":"'1- Tableau financier adapté'!B6","v":0},"74 – Subventions d’exploitation",{"$f":"SUM(D9:D27)","v":0}]
[null,null,"Fédération - Etat - ANS/PSF",{"$f":"'1- Tableau financier adapté'!D15","v":0}]
[null,null,"Etat - Emploi",{"$f":"'1- Tableau financier adapté'!D16+'1- Tableau financier adapté'!D17+'1- Tableau financier adapté'!D18","v":0},"Sur le Compte Asso, cliquer sur \"Ajouter un cofinancement\""]
["61- Services extérieurs",{"$f":"SUM(B12:B15)","v":0},"Conseil régional",{"$f":"'1- Tableau financier adapté'!D11+'1- Tableau financier adapté'!D19","v":0}]
["Locations ",{"$f":"'1- Tableau financier adapté'!B9+'1- Tableau financier adapté'!B10","v":0},"Conseil départemental",{"$f":"'1- Tableau financier adapté'!D12+'1- Tableau financier adapté'!D20","v":0}]
["Entretien et réparation",{"$f":"'1- Tableau financier adapté'!B7","v":0},"Intercommunalité(s)",{"$f":"'1- Tableau financier adapté'!D13","v":0}]
["Assurance",{"$f":"'1- Tableau financier adapté'!B19","v":0},"Commune(s)",{"$f":"'1- Tableau financier adapté'!D14+'1- Tableau financier adapté'!D21","v":0}]
["Documentation",null,"ASP (Emplois aidés)",{"$f":"'1- Tableau financier adapté'!D24","v":0}]
[null,null,"Organismes sociaux (CAF, etc.)",{"$f":"'1- Tableau financier adapté'!D22","v":0}]
["62 – Autres services extérieurs",{"$f":"SUM(B18:B21)","v":0},"Fonds européens",{"$f":"'1- Tableau financier adapté'!D23","v":0}]
["Rémunération intermédiaires et honoraires",{"$f":"'1- Tableau financier adapté'!B20+'1- Tableau financier adapté'!B21","v":0},"Autres établissements publics ",{"$f":"'1- Tableau financier adapté'!D25","v":0}]
["Publicité, publication",{"$f":"'1- Tableau financier adapté'!B16+'1- Tableau financier adapté'!B17","v":0}]
["Déplacements, missions ",{"$f":"'1- Tableau financier adapté'!B11+'1- Tableau financier adapté'!B12+'1- Tableau financier adapté'!B13","v":0},"Aides privées ",{"$f":"'1- Tableau financier adapté'!D7","v":0}]
["Services bancaires, autres",{"$f":"'1- Tableau financier adapté'!B14+'1- Tableau financier adapté'!B15","v":0}]
["63 - Impôts et taxes",{"$f":"SUM(B23:B24)","v":0}]
["Impôts et taxes sur rémunération"]
["Autres impôts et taxes",{"$f":"'1- Tableau financier adapté'!B24","v":0}]
["64 - Charges de personnel",{"$f":"SUM(B26:B28)","v":0}]
["Rémunération des personnels",{"$f":"'1- Tableau financier adapté'!B22","v":0}]
["Charges sociales",{"$f":"'1- Tableau financier adapté'!B23","v":0}]
["Autres charges de personnel"]
["65 - Autres charges de gestion courante",{"$f":"'1- Tableau financier adapté'!B18","v":0},"75 – Autres produits de gestion courante",{"$f":"SUM(D30:D31)","v":0}]
[null,null,"Cotisations",{"$f":"'1- Tableau financier adapté'!D5+'1- Tableau financier adapté'!D27+'1- Tableau financier adapté'!D6","v":0}]
[null,null,"Dons manuels, mécénat",{"$f":"'1- Tableau financier adapté'!D8","v":0}]
["66 – Charges financières",null,"76 – Produits financiers"]
["67- Charges exceptionnelles",{"$f":"'1- Tableau financier adapté'!B25","v":0},"77- Produits exceptionnels",{"$f":"'1- Tableau financier adapté'!D26","v":0}]
["68 – Dotation aux amortissements",null,"78 – Reports ressources non utilisées d'opérations antérieures"]
["CHARGES INDIRECTES AFFECTEES A L'ACTION",null,"RESSOURCES PROPRES AFFECTEES A L'ACTION"]
["Charges fixes de fonctionnement",{"$f":"'1- Tableau financier adapté'!B26","v":0},"Participation budget de l'association",{"$f":"'1- Tableau financier adapté'!D28","v":0}]
["Frais financiers"]
["Autres"]
["TOTAL DES CHARGES",{"$f":"B36+B37+B38+B34+B33+B32+B29+B25+B22+B17+B11+B6","v":0},"TOTAL DES PRODUITS",{"$f":"D6+D7+D8+D29+D32+D33+D36","v":0}]
["CONTRIBUTIONS VOLONTAIRES EN NATURE"]
["86 – Emploi des contributions volontaires en nature",{"$f":"SUM(B42:B45)","v":0},"87- Contributions volontaires en nature",{"$f":"SUM(D42:D45)","v":0}]
[" Secours en nature",{"$f":"'1- Tableau financier adapté'!B31","v":0},"Bénévolat",{"$f":"'1- Tableau financier adapté'!D31","v":0}]
["Mise à disposition gratuite de biens et services",{"$f":"'1- Tableau financier adapté'!B32","v":0},"Prestations en nature",{"$f":"'1- Tableau financier adapté'!D32","v":0}]
["Prestations",{"$f":"'1- Tableau financier adapté'!B33","v":0},"Dons en nature",{"$f":"'1- Tableau financier adapté'!D33","v":0}]
["Personnel bénévole",{"$f":"'1- Tableau financier adapté'!B34","v":0}]
["TOTAL valorisations",{"$f":"B41","v":0},"TOTAL valorisations",{"$f":"D41","v":0}]